fUST/lending_fUST_20250604
["ID","MTS","AMOUNT","RATE_DAILY","PERIOD"]
[364249376,1749048650557,-440.0,0.00018082,2]
[364249377,1749048650567,-440.0,0.00018082,2]
[364249378,1749048650576,-522.98,0.00018082,2]
[364249379,1749048650585,-440.0,0.00018082,2]
[364249380,1749048650596,-440.0,0.00018082,2]
[364249381,1749048650606,-782.54,0.00018082,2]
[364249382,1749048650617,-440.0,0.00018082,2]
[364249383,1749048650626,-440.0,0.00018082,2]
[364249384,1749048650635,-440.0,0.00018082,2]
[364249385,1749048650644,-440.0,0.00018082,2]
[364249386,1749048650654,-440.0,0.00018082,2]
[364249387,1749048650663,-738.59,0.00018082,2]
[364249388,1749048650672,-534.59,0.00018082,2]
[364249389,1749048650682,-882.73,0.00018082,2]
[364249390,1749048650691,-440.0,0.00018082,2]
[364249391,1749048650701,-440.0,0.00018082,2]
[364249392,1749048650711,-963.7,0.00018082,2]
[364249393,1749048650720,-330.0,0.00018082,2]
[364249394,1749048650730,-440.0,0.00018082,2]
[364249395,1749048650740,-440.0,0.00018082,2]
[364249396,1749048650749,-1738.48,0.00018082,2]
[364249397,1749048650759,-350.03076927,0.00018082,2]
[364249398,1749048650768,-529.08,0.00018082,2]
[364249399,1749048650778,-1279.44,0.00018082,2]
[364249400,1749048650788,-2500.89,0.00018082,2]
[364249401,1749048650798,-440.0,0.00018082,2]
[364249402,1749048650807,-851.19,0.00018082,2]
[364249403,1749048650817,-244.78354762,0.00018082,2]
[364249404,1749048650827,-4766.37,0.00018082,2]
[364249405,1749048650836,-621.14,0.00018082,2]
[364249406,1749048650846,-2345.7,0.00018082,2]
[364249407,1749048650855,-440.0,0.00018082,2]
[364249408,1749048650865,-357.54,0.00018082,2]
[364249409,1749048650875,-440.0,0.00018082,2]
[364249410,1749048650885,-440.0,0.00018082,2]
[364249411,1749048650895,-3632.46,0.00018082,2]
[364249412,1749048650905,-440.0,0.00018082,2]
[364249413,1749048650914,-4207.85,0.00018082,2]
[364249414,1749048650925,-440.0,0.00018082,2]
[364249415,1749048650936,-440.0,0.00018082,2]
[364249416,1749048650945,-544.41,0.00018082,2]
[364249417,1749048650955,-671.03,0.00018082,2]
[364249418,1749048650965,-440.0,0.00018082,2]
[364249419,1749048650974,-831.2,0.00018082,2]
[364249420,1749048650986,-440.0,0.00018082,2]
[364249421,1749048650995,-440.0,0.00018082,2]
[364249422,1749048651005,-524.08,0.00018082,2]
[364249423,1749048651014,-440.0,0.00018082,2]
[364249424,1749048651024,-440.0,0.00018082,2]
[364249425,1749048651033,-1161.21,0.00018082,2]
[364249426,1749048651042,-440.0,0.00018082,2]
[364249427,1749048651052,-440.0,0.00018082,2]
[364249428,1749048651065,-370.0,0.00018082,2]
[364249429,1749048651075,-440.0,0.00018082,2]
[364249430,1749048651084,-440.0,0.00018082,2]
[364249431,1749048651094,-757.95,0.00018082,2]
[364249432,1749048651103,-440.0,0.00018082,2]
[364249433,1749048651113,-3867.83,0.00018082,2]
[364249434,1749048651123,-781.65,0.00018082,2]
[364249435,1749048651132,-676.86,0.00018082,2]
[364249436,1749048651142,-440.0,0.00018082,2]
[364249437,1749048651153,-2010.74,0.00018082,2]
[364249438,1749048651162,-610.38,0.00018082,2]
[364249439,1749048651171,-578.26,0.00018082,2]
[364249440,1749048651181,-2078.12,0.00018082,2]
[364249441,1749048651191,-440.0,0.00018082,2]
[364249442,1749048651200,-509.39,0.00018082,2]
[364249443,1749048651210,-440.0,0.00018082,2]
[364249444,1749048651219,-3126.8,0.00018279,2]
[364249445,1749048651229,-3126.8,0.00018279,2]
[364249446,1749048651239,-3126.8,0.00018279,2]
[364249447,1749048651249,-3126.8,0.00018279,2]
[364249448,1749048651259,-2730.32847984,0.00018279,2]
[364249449,1749048651268,-1500.0,0.00018296,2]
[364249450,1749048651277,-500.0,0.00018325,2]
[364249451,1749048651287,-842.5625,0.00018334,2]
[364249452,1749048651297,-160.0,0.00018334,2]
[364249453,1749048651306,-160.0,0.00018334,2]
[364249454,1749048651316,-212.90465545,0.00018334,2]
[364249455,1749048651326,-423.69433488,0.00018334,2]
[364249456,1749048651336,-229.45591648,0.00018334,2]
[364249457,1749048651345,-12672.94222187,0.00018334,2]
[364249458,1749048651355,-160.0,0.00018335,2]
[364249459,1749048651365,-160.0,0.00018335,2]
[364249460,1749048651374,-160.0,0.00018335,2]
[364249461,1749048651384,-440.0,0.00018356,2]
[364249462,1749048651394,-440.0,0.00018356,2]
[364249463,1749048651403,-440.0,0.00018356,2]
[364249464,1749048651413,-522.98,0.00018356,2]
[364249465,1749048651423,-440.0,0.00018356,2]
[364249466,1749048651432,-532.32126794,0.00018356,2]
[364249467,1749048651442,-782.54,0.00018356,2]
[364249468,1749048651451,-440.0,0.00018356,2]
[364249469,1749048651460,-440.0,0.00018356,2]
[364249470,1749048651470,-440.0,0.00018356,2]
[364249471,1749048651481,-380.0,0.00018356,2]
[364249472,1749048651491,-350.0,0.00018356,2]
[364249473,1749048651501,-738.59,0.00018356,2]
[364249474,1749048651511,-534.59,0.00018356,2]
[364249475,1749048651520,-882.73,0.00018356,2]
[364249476,1749048651530,-440.0,0.00018356,2]
[364249477,1749048651614,-440.0,0.00018356,2]
[364249478,1749048651625,-963.7,0.00018356,2]
[364249479,1749048651635,-440.0,0.00018356,2]
[364249480,1749048651644,-440.0,0.00018356,2]
[364249481,1749048651654,-1738.48,0.00018356,2]
[364249482,1749048651664,-529.08,0.00018356,2]
[364249483,1749048651674,-1279.44,0.00018356,2]
[364249484,1749048651684,-2500.89,0.00018356,2]
[364249485,1749048651693,-191.24,0.00018356,2]
[364249486,1749048651703,-851.19,0.00018356,2]
[364249487,1749048651712,-4766.37,0.00018356,2]
[364249488,1749048651721,-621.14,0.00018356,2]
[364249489,1749048651732,-2345.7,0.00018356,2]
[364249490,1749048651742,-440.0,0.00018356,2]
[364249491,1749048651751,-440.0,0.00018356,2]
[364249492,1749048651760,-440.0,0.00018356,2]
[364249493,1749048651770,-3632.46,0.00018356,2]
[364249494,1749048651780,-440.0,0.00018356,2]
[364249495,1749048651791,-4207.85,0.00018356,2]
[364249496,1749048651800,-430.83897167,0.00018356,2]
[364249497,1749048651810,-440.0,0.00018356,2]
[364249498,1749048651820,-544.41,0.00018356,2]
[364249499,1749048651832,-671.03,0.00018356,2]
[364249500,1749048651842,-440.0,0.00018356,2]
[364249501,1749048651852,-831.2,0.00018356,2]
[364249502,1749048651863,-347.42542019,0.00018356,2]
[364249503,1749048651873,-440.0,0.00018356,2]
[364249504,1749048651883,-524.08,0.00018356,2]
[364249505,1749048651893,-440.0,0.00018356,2]
[364249506,1749048651902,-440.0,0.00018356,2]
[364249507,1749048651913,-1161.21,0.00018356,2]
[364249508,1749048651923,-440.0,0.00018356,2]
[364249509,1749048651934,-440.0,0.00018356,2]
[364249510,1749048651944,-440.0,0.00018356,2]
[364249511,1749048651954,-440.0,0.00018356,2]
[364249512,1749048651964,-757.95,0.00018356,2]
[364249513,1749048651974,-440.0,0.00018356,2]
[364249514,1749048651987,-3867.83,0.00018356,2]
[364249515,1749048651997,-781.65,0.00018356,2]
[364249516,1749048652006,-676.86,0.00018356,2]
[364249517,1749048652015,-440.0,0.00018356,2]
[364249518,1749048652025,-2010.74,0.00018356,2]
[364249519,1749048652035,-610.38,0.00018356,2]
[364249520,1749048652044,-578.26,0.00018356,2]
[364249521,1749048652053,-2078.12,0.00018356,2]
[364249522,1749048652064,-440.0,0.00018356,2]
[364249523,1749048652077,-440.0,0.00018356,2]
[364249524,1749048652086,-1065.64067906,0.00018393,2]
[364249525,1749048652096,-1000.0,0.00018394,2]
[364249526,1749048652107,-2730.32847984,0.00018555,2]
[364249527,1749048652119,-440.0,0.0001863,2]
[364249528,1749048652130,-538.80675126,0.0001863,2]
[364249529,1749048652140,-440.0,0.0001863,2]
[364249530,1749048652153,-522.98,0.0001863,2]
[364249531,1749048652163,-440.0,0.0001863,2]
[364249532,1749048652173,-782.54,0.0001863,2]
[364249533,1749048652182,-440.0,0.0001863,2]
[364249534,1749048652192,-440.0,0.0001863,2]
[364249535,1749048652201,-440.0,0.0001863,2]
[364249536,1749048652211,-738.59,0.0001863,2]
[364249537,1749048652221,-534.59,0.0001863,2]
[364249538,1749048652231,-882.73,0.0001863,2]
[364249539,1749048652241,-227.29747007,0.0001863,2]
[364249540,1749048652252,-440.0,0.0001863,2]
[364249541,1749048652273,-963.7,0.0001863,2]
[364249542,1749048652288,-440.0,0.0001863,2]
[364249543,1749048652304,-440.0,0.0001863,2]
[364249544,1749048652323,-1738.48,0.0001863,2]
[364249545,1749048652342,-529.08,0.0001863,2]
[364249546,1749048652360,-1279.44,0.0001863,2]
[364249547,1749048652377,-2500.89,0.0001863,2]
[364249548,1749048652394,-851.19,0.0001863,2]
[364249549,1749048652411,-4766.37,0.0001863,2]
[364249550,1749048652423,-621.14,0.0001863,2]
[364249551,1749048652440,-2345.7,0.0001863,2]
[364249552,1749048652457,-304.96,0.0001863,2]
[364249553,1749048652475,-440.0,0.0001863,2]
[364249554,1749048652492,-440.0,0.0001863,2]
[364249555,1749048652504,-3632.46,0.0001863,2]
[364249556,1749048652520,-440.0,0.0001863,2]
[364249557,1749048652537,-4207.85,0.0001863,2]
[364249558,1749048652550,-440.0,0.0001863,2]
[364249559,1749048652566,-544.41,0.0001863,2]
[364249560,1749048652578,-671.03,0.0001863,2]
[364249561,1749048652592,-440.0,0.0001863,2]
[364249562,1749048652606,-831.2,0.0001863,2]
[364249563,1749048652620,-440.0,0.0001863,2]
[364249564,1749048652634,-524.08,0.0001863,2]
[364249565,1749048652649,-390.99833517,0.0001863,2]
[364249566,1749048652662,-440.0,0.0001863,2]
[364249567,1749048652676,-1161.21,0.0001863,2]
[364249568,1749048652688,-440.0,0.0001863,2]
[364249569,1749048652702,-440.0,0.0001863,2]
[364249570,1749048652715,-440.0,0.0001863,2]
[364249571,1749048652729,-440.0,0.0001863,2]
[364249572,1749048652742,-757.95,0.0001863,2]
[364249573,1749048652755,-440.0,0.0001863,2]
[364249574,1749048652768,-3867.83,0.0001863,2]
[364249575,1749048652782,-781.65,0.0001863,2]
[364249576,1749048652795,-676.86,0.0001863,2]
[364249577,1749048652809,-440.0,0.0001863,2]
[364249578,1749048652822,-2010.74,0.0001863,2]
[364249579,1749048652836,-610.38,0.0001863,2]
[364249580,1749048652851,-578.26,0.0001863,2]
[364249581,1749048652866,-2078.12,0.0001863,2]
[364249582,1749048652882,-373.27,0.0001863,2]
[364249583,1749048652897,-440.0,0.0001863,2]
[364249584,1749048652913,-2730.32847984,0.00018831,2]
[364249585,1749048652927,-2044.54239209,0.00018844,2]
[364249586,1749048652941,-2090.43381798,0.000189,2]
[364249587,1749048652955,-350.0,0.00018904,2]
[364249588,1749048652969,-440.0,0.00018904,2]
[364249589,1749048652983,-522.98,0.00018904,2]
[364249590,1749048652996,-440.0,0.00018904,2]
[364249591,1749048653011,-782.54,0.00018904,2]
[364249592,1749048653024,-440.0,0.00018904,2]
[364249593,1749048653037,-440.0,0.00018904,2]
[364249594,1749048653050,-440.0,0.00018904,2]
[364249595,1749048653066,-738.59,0.00018904,2]
[364249596,1749048653084,-534.59,0.00018904,2]
[364249597,1749048653099,-882.73,0.00018904,2]
[364249598,1749048653110,-440.0,0.00018904,2]
[364249599,1749048653120,-963.7,0.00018904,2]
[364249600,1749048653130,-440.0,0.00018904,2]
[364249601,1749048653139,-440.0,0.00018904,2]
[364249602,1749048653150,-1738.48,0.00018904,2]
[364249603,1749048653298,-529.08,0.00018904,2]
[364249604,1749048653322,-1279.44,0.00018904,2]
[364249605,1749048653333,-2500.89,0.00018904,2]
[364249606,1749048653343,-851.19,0.00018904,2]
[364249607,1749048653353,-4766.37,0.00018904,2]
[364249608,1749048653362,-621.14,0.00018904,2]
[364249609,1749048653372,-2345.7,0.00018904,2]
[364249610,1749048653383,-440.0,0.00018904,2]
[364249611,1749048653393,-570.68388845,0.00018904,2]
[364249612,1749048653403,-3632.46,0.00018904,2]
[364249613,1749048653414,-403.21183067,0.00018904,2]
[364249614,1749048653424,-4207.85,0.00018904,2]
[364249615,1749048653434,-440.0,0.00018904,2]
[364249616,1749048653444,-544.41,0.00018904,2]
[364249617,1749048653454,-671.03,0.00018904,2]
[364249618,1749048653464,-440.0,0.00018904,2]
[364249619,1749048653473,-831.2,0.00018904,2]
[364249620,1749048653482,-440.0,0.00018904,2]
[364249621,1749048653492,-524.08,0.00018904,2]
[364249622,1749048653502,-440.0,0.00018904,2]
[364249623,1749048653512,-1161.21,0.00018904,2]
[364249624,1749048653522,-440.0,0.00018904,2]
[364249625,1749048653532,-319.77843173,0.00018904,2]
[364249626,1749048653541,-440.0,0.00018904,2]
[364249627,1749048653551,-440.0,0.00018904,2]
[364249628,1749048653560,-757.95,0.00018904,2]
[364249629,1749048653570,-440.0,0.00018904,2]
[364249630,1749048653580,-3867.83,0.00018904,2]
[364249631,1749048653590,-781.65,0.00018904,2]
[364249632,1749048653599,-676.86,0.00018904,2]
[364249633,1749048653609,-440.0,0.00018904,2]
[364249634,1749048653618,-2010.74,0.00018904,2]
[364249635,1749048653628,-610.38,0.00018904,2]
[364249636,1749048653638,-578.26,0.00018904,2]
[364249637,1749048653649,-2078.12,0.00018904,2]
[364249638,1749048653658,-440.0,0.00018904,2]
[364249639,1749048653668,-1500.0,0.00018942,2]
[364249640,1749048653679,-2000.0,0.00018972,2]
[364249641,1749048653689,-1065.64067906,0.00019078,2]
[364249642,1749048653699,-2730.32847984,0.00019107,2]
[364249643,1749048653709,-500.0,0.00019177,2]
[364249644,1749048653719,-5365.57084723,0.00019177,2]
[364249645,1749048653729,-500.0,0.00019177,2]
[364249646,1749048653738,-500.0,0.00019177,2]
[364249647,1749048653748,-5365.57084723,0.00019177,2]
[364249648,1749048653757,-5365.57084723,0.00019177,2]
[364249649,1749048653767,-5365.57084723,0.00019177,2]
[364249650,1749048653777,-5365.57084723,0.00019177,2]
[364249651,1749048653787,-500.0,0.00019177,2]
[364249652,1749048653796,-5365.57084723,0.00019177,2]
[364249653,1749048653806,-5365.57084723,0.00019177,2]
[364249654,1749048653816,-500.0,0.00019177,2]
[364249655,1749048653825,-500.0,0.00019177,2]
[364249656,1749048653834,-5365.57084723,0.00019177,2]
[364249657,1749048653844,-5365.57084723,0.00019177,2]
[364249658,1749048653854,-500.0,0.00019177,2]
[364249659,1749048653863,-500.0,0.00019177,2]
[364249660,1749048653873,-500.0,0.00019177,2]
[364249661,1749048653882,-440.0,0.00019178,2]
[364249662,1749048653892,-522.98,0.00019178,2]
[364249663,1749048653901,-440.0,0.00019178,2]
[364249664,1749048653911,-782.54,0.00019178,2]
[364249665,1749048653920,-440.0,0.00019178,2]
[364249666,1749048653931,-440.0,0.00019178,2]
[364249667,1749048653942,-300.66602136,0.00019178,2]
[364249668,1749048653951,-738.59,0.00019178,2]
[364249669,1749048653961,-534.59,0.00019178,2]
[364249670,1749048653971,-882.73,0.00019178,2]
[364249671,1749048653982,-440.0,0.00019178,2]
[364249672,1749048653992,-963.7,0.00019178,2]
[364249673,1749048654002,-440.0,0.00019178,2]
[364249674,1749048654012,-440.0,0.00019178,2]
[364249675,1749048654022,-440.0,0.00019178,2]
[364249676,1749048654032,-440.0,0.00019178,2]
[364249677,1749048654042,-440.0,0.00019178,2]
[364249678,1749048654052,-440.0,0.00019178,2]
[364249679,1749048654065,-393.69700413,0.00019178,2]
[364249680,1749048654075,-440.0,0.00019178,2]
[364249681,1749048654085,-386.0,0.00019178,2]
[364249682,1749048654095,-1738.48,0.00019178,2]
[364249683,1749048654106,-529.08,0.00019178,2]
[364249684,1749048654115,-1279.44,0.00019178,2]
[364249685,1749048654125,-2500.89,0.00019178,2]
[364249686,1749048654134,-851.19,0.00019178,2]
[364249687,1749048654145,-4766.37,0.00019178,2]
[364249688,1749048654155,-621.14,0.00019178,2]
[364249689,1749048654165,-2345.7,0.00019178,2]
[364249690,1749048654175,-440.0,0.00019178,2]
[364249691,1749048654185,-3632.46,0.00019178,2]
[364249692,1749048654195,-4207.85,0.00019178,2]
[364249693,1749048654204,-440.0,0.00019178,2]
[364249694,1749048654214,-544.41,0.00019178,2]
[364249695,1749048654224,-671.03,0.00019178,2]
[364249696,1749048654234,-440.0,0.00019178,2]
[364249697,1749048654244,-831.2,0.00019178,2]
[364249698,1749048654254,-440.0,0.00019178,2]
[364249699,1749048654263,-524.08,0.00019178,2]
[364249700,1749048654273,-347.77199809,0.00019178,2]
[364249701,1749048654283,-1161.21,0.00019178,2]
[364249702,1749048654292,-440.0,0.00019178,2]
[364249703,1749048654302,-440.0,0.00019178,2]
[364249704,1749048654312,-440.0,0.00019178,2]
[364249705,1749048654322,-757.95,0.00019178,2]
[364249706,1749048654331,-440.0,0.00019178,2]
[364249707,1749048654341,-3867.83,0.00019178,2]
[364249708,1749048654351,-781.65,0.00019178,2]
[364249709,1749048654362,-676.86,0.00019178,2]
[364249710,1749048654372,-440.0,0.00019178,2]
[364249711,1749048654382,-2010.74,0.00019178,2]
[364249712,1749048654391,-610.38,0.00019178,2]
[364249713,1749048654402,-578.26,0.00019178,2]
[364249714,1749048654412,-2078.12,0.00019178,2]
[364249715,1749048654422,-340.238821,0.00019178,2]
[364249716,1749048654432,-600.0,0.00019301,2]
[364249717,1749048654441,-100000.0,0.00019329,2]
[364249718,1749048654451,-500.0,0.00019373,2]
[364249719,1749048654461,-500.0,0.00019373,2]
[364249720,1749048654471,-500.0,0.00019373,2]
[364249721,1749048654481,-600.0,0.00019373,2]
[364249722,1749048654490,-500.0,0.00019373,2]
[364249723,1749048654500,-500.0,0.00019373,2]
[364249724,1749048654509,-2730.32847984,0.00019383,2]
[364249725,1749048654520,-440.0,0.00019452,2]
[364249726,1749048654530,-522.98,0.00019452,2]
[364249727,1749048654539,-440.0,0.00019452,2]
[364249728,1749048654549,-782.54,0.00019452,2]
[364249729,1749048654559,-440.0,0.00019452,2]
[364249730,1749048654568,-256.28224816,0.00019452,2]
[364249731,1749048654578,-738.59,0.00019452,2]
[364249732,1749048654587,-534.59,0.00019452,2]
[364249733,1749048654596,-882.73,0.00019452,2]
[364249734,1749048654606,-440.0,0.00019452,2]
[364249735,1749048654616,-963.7,0.00019452,2]
[364249736,1749048654626,-440.0,0.00019452,2]
[364249737,1749048654635,-1738.48,0.00019452,2]
[364249738,1749048654645,-529.08,0.00019452,2]
[364249739,1749048654655,-1279.44,0.00019452,2]
[364249740,1749048654665,-2500.89,0.00019452,2]
[364249741,1749048654674,-851.19,0.00019452,2]
[364249742,1749048654684,-4766.37,0.00019452,2]
[364249743,1749048654693,-621.14,0.00019452,2]
[364249744,1749048654703,-2345.7,0.00019452,2]
[364249745,1749048654713,-440.0,0.00019452,2]
[364249746,1749048654722,-3632.46,0.00019452,2]
[364249747,1749048654732,-4207.85,0.00019452,2]
[364249748,1749048654742,-440.0,0.00019452,2]
[364249749,1749048654751,-544.41,0.00019452,2]
[364249750,1749048654760,-671.03,0.00019452,2]
[364249751,1749048654770,-440.0,0.00019452,2]
[364249752,1749048654780,-831.2,0.00019452,2]
[364249753,1749048654789,-440.0,0.00019452,2]
[364249754,1749048654799,-524.08,0.00019452,2]
[364249755,1749048654808,-1161.21,0.00019452,2]
[364249756,1749048654818,-440.0,0.00019452,2]
[364249757,1749048654827,-424.15966548,0.00019452,2]
[364249758,1749048654839,-440.0,0.00019452,2]
[364249759,1749048654848,-757.95,0.00019452,2]
[364249760,1749048654858,-440.0,0.00019452,2]
[364249761,1749048654867,-3867.83,0.00019452,2]
[364249762,1749048654877,-781.65,0.00019452,2]
[364249763,1749048654886,-676.86,0.00019452,2]
[364249764,1749048654896,-440.0,0.00019452,2]
[364249765,1749048654905,-2010.74,0.00019452,2]
[364249766,1749048654915,-610.38,0.00019452,2]
[364249767,1749048654925,-578.26,0.00019452,2]
[364249768,1749048654936,-2078.12,0.00019452,2]
[364249769,1749048654945,-2000.0,0.00019489,2]
[364249770,1749048654956,-151.0,0.000196,2]
[364249771,1749048654965,-587.0,0.0001963,2]
[364249772,1749048654975,-280.0,0.0001963,2]
[364249773,1749048654986,-587.0,0.0001963,2]
[364249774,1749048654996,-2730.32847984,0.00019659,2]
[364249775,1749048655005,-440.0,0.00019726,2]
[364249776,1749048655014,-522.98,0.00019726,2]
[364249777,1749048655023,-440.0,0.00019726,2]
[364249778,1749048655031,-782.54,0.00019726,2]
[364249779,1749048655040,-440.0,0.00019726,2]
[364249780,1749048655049,-738.59,0.00019726,2]
[364249781,1749048655057,-534.59,0.00019726,2]
[364249782,1749048655066,-882.73,0.00019726,2]
[364249783,1749048655078,-440.0,0.00019726,2]
[364249784,1749048655086,-963.7,0.00019726,2]
[364249785,1749048655095,-440.0,0.00019726,2]
[364249786,1749048655105,-1738.48,0.00019726,2]
[364249787,1749048655114,-529.08,0.00019726,2]
[364249788,1749048655124,-1279.44,0.00019726,2]
[364249789,1749048655134,-2500.89,0.00019726,2]
[364249790,1749048655144,-851.19,0.00019726,2]
[364249791,1749048655154,-4766.37,0.00019726,2]
[364249792,1749048655163,-621.14,0.00019726,2]
[364249793,1749048655173,-2345.7,0.00019726,2]
[364249794,1749048655182,-440.0,0.00019726,2]
[364249795,1749048655192,-3632.46,0.00019726,2]
[364249796,1749048655201,-4207.85,0.00019726,2]
[364249797,1749048655211,-440.0,0.00019726,2]
[364249798,1749048655220,-544.41,0.00019726,2]
[364249799,1749048655232,-671.03,0.00019726,2]
[364249800,1749048655242,-440.0,0.00019726,2]
[364249801,1749048655252,-831.2,0.00019726,2]
[364249802,1749048655261,-440.0,0.00019726,2]
[364249803,1749048655270,-524.08,0.00019726,2]
[364249804,1749048655280,-1161.21,0.00019726,2]
[364249805,1749048655290,-440.0,0.00019726,2]
[364249806,1749048655300,-440.0,0.00019726,2]
[364249807,1749048655310,-757.95,0.00019726,2]
[364249808,1749048655319,-440.0,0.00019726,2]
[364249809,1749048655328,-3867.83,0.00019726,2]
[364249810,1749048655339,-781.65,0.00019726,2]
[364249811,1749048655348,-676.86,0.00019726,2]
[364249812,1749048655359,-2010.74,0.00019726,2]
[364249813,1749048655369,-440.0,0.00019726,2]
[364249814,1749048655379,-610.38,0.00019726,2]
[364249815,1749048655478,-578.26,0.00019726,2]
[364249816,1749048655501,-2078.12,0.00019726,2]
[364249817,1749048655511,-194.003,0.00019817,2]
[364249818,1749048655521,-1697.0,0.00019827,2]
[364249819,1749048655531,-565.46220978,0.00019921,2]
[364249820,1749048655541,-504.31260326,0.00019921,2]
[364249821,1749048655551,-1000.0,0.00019921,2]
[364249822,1749048655560,-1200.0,0.00019921,2]
[364249823,1749048655570,-1000.0,0.00019921,2]
[364249824,1749048655580,-500.0,0.00019921,2]
[364249825,1749048655589,-2730.32847984,0.00019934,2]
[364249826,1749048655599,-22124.0,0.0002,2]
[364249827,1749048655609,-330.0,0.0002,2]
[364249828,1749048655618,-522.98,0.0002,2]
[364249829,1749048655628,-440.0,0.0002,2]
[364249830,1749048655638,-782.54,0.0002,2]
[364249831,1749048655648,-440.0,0.0002,2]
[364249832,1749048655657,-738.59,0.0002,2]
[364249833,1749048655666,-534.59,0.0002,2]
[364249834,1749048655676,-882.73,0.0002,2]
[364249835,1749048655685,-900.0,0.0002,2]
[364249836,1749048655695,-440.0,0.0002,2]
[364249837,1749048655705,-963.7,0.0002,2]
[364249838,1749048655716,-440.0,0.0002,2]
[364249839,1749048655726,-1738.48,0.0002,2]
[364249840,1749048655739,-529.08,0.0002,2]
[364249841,1749048655748,-1279.44,0.0002,2]
[364249842,1749048655758,-2500.89,0.0002,2]
[364249843,1749048655767,-851.19,0.0002,2]
[364249844,1749048655778,-4766.37,0.0002,2]
[364249845,1749048655787,-621.14,0.0002,2]
[364249846,1749048655796,-2345.7,0.0002,2]
[364249847,1749048655806,-440.0,0.0002,2]
[364249848,1749048655816,-3632.46,0.0002,2]
[364249849,1749048655825,-4207.85,0.0002,2]
[364249850,1749048655835,-440.0,0.0002,2]
[364249851,1749048655844,-544.41,0.0002,2]
[364249852,1749048655854,-671.03,0.0002,2]
[364249853,1749048655864,-440.0,0.0002,2]
[364249854,1749048655873,-831.2,0.0002,2]
[364249855,1749048655885,-263.38,0.0002,2]
[364249856,1749048655894,-524.08,0.0002,2]
[364249857,1749048655906,-1161.21,0.0002,2]
[364249858,1749048655915,-440.0,0.0002,2]
[364249859,1749048655927,-440.0,0.0002,2]
[364249860,1749048655937,-757.95,0.0002,2]
[364249861,1749048655948,-440.0,0.0002,2]
[364249862,1749048655958,-3867.83,0.0002,2]
[364249863,1749048655967,-676.86,0.0002,2]
[364249864,1749048655977,-781.65,0.0002,2]
[364249865,1749048655989,-4000.0,0.0002,4]
[364249866,1749048655999,-2010.74,0.0002,2]
[364249867,1749048656009,-440.0,0.0002,2]
[364249868,1749048656020,-610.38,0.0002,2]
[364249869,1749048656030,-578.26,0.0002,2]
[364249870,1749048656039,-2078.12,0.0002,2]
[364249871,1749048656049,-2048.39645406,0.00020037,2]
[364249872,1749048656060,-2000.0,0.00020068,2]
[364249873,1749048656072,-2730.32847984,0.0002021,2]
[364249874,1749048656082,-522.98,0.00020273,2]
[364249875,1749048656092,-316.08,0.00020273,2]